{"text_format":"3","workbook":"xlsx","n_sheets":2,"sheets":["Форма пропозиції","Кошторис"],"not_rendered":{"charts":1,"images":2,"defined_names":4},"read":"whole","date_system":"1900"}

{"sheet":"Форма пропозиції","index":0,"n_rows":48,"n_cols":7,"rows_kept":48,"merged":[[15,1,25,5],[29,1,31,5],[35,1,37,5],[43,1,45,5]]}
[]
[null,"ФОРМА ПРОПОЗИЦІЇ НА БУДІВНИЦТВО",{"$nulls":4}," "]
[]
[]
[null,"ВІДОМОСТІ ВЛАСНИКА",null,null,"ВІДОМОСТІ ПІДРЯДНИКА"]
[null,"Ім’я","Турчинов Михайло",null,"Компанія","Корпорація Fabrikam"]
[null,"Адреса","Вул. Каштанова, 123",null,"Ім’я","Тарас Руденко"]
[null,"Місто, країна, поштовий індекс","12345, м. Яготин",null,"Адреса","Вул. Крайня, 321"]
[null,"Телефон",8885550111,null,"Місто, країна, поштовий індекс","12345, м. Яготин"]
[null,"Електронна пошта","michailo@proseware.com",null,"Телефон",8885550123]
[{"$nulls":4},"Електронна пошта","taras@fabrikam.com"]
[null,"Назва проекту","Сходи для компанії",null,"Дата завершення","2013-07-14"]
[]
[null,"ОБСЯГ РОБОТИ"]
[]
[null,"Далі вказано весь обсяг роботи. Введіть необхідні специфікації. Це буде макет проекту великих сходів. Для цього нам необхідний тільки дерев'яний брус розміром 2x4 та 2x8 дюймів, а також скоби для кріплення балок, щоб побудувати каркас. Сходи будуть виготовлятися з дерев’яного брусу розміром 2x4 дюйми. Також будуть використовуватись шурупи розміром не менше, ніж 2 дюйми. Всі цвяхи повинні бути не меншими 10 дюймів. Конструкція повинна витримувати 500 фунтів на одну сходинку. Сходинки будуть знаходитися на одному рівні з будинком. Підніжка буде прикріплена до будинку. За прибирання відповідатиме підрядник."]
{"$rows_empty":11}
[null,"НЕ ВКЛЮЧЕНО"]
[]
[null,"Сходи будуть без поручнів. Фундамент готує власник. Власник фарбує сходи."]
[]
[]
[]
[null,"ПРОПОЗИЦІЯ КОМПАНІЇ"]
[]
[null,"Ми, корпорація «Fabrikam», пропонуємо завершити вище зазначений обсяг роботи до 14.07.2011 за таку оплату 476,43 грн."]
[]
[]
[]
[null,"Надіслано (представник компанії)",{"$nulls":3},"Дата"]
[]
[null,"ПРИЙНЯТТЯ УМОВ ВЛАСНИКОМ"]
[]
[null,"Я, Турчинов Михайло, приймаю умови про виконання вище зазначеного обсягу роботи до 14.07.2011 за таку оплату 476,43 грн."]
[]
[]
[]
[null,"Надіслано (власник житла або уповноважений представник)",{"$nulls":3},"Дата"]

{"sheet":"Кошторис","index":1,"n_rows":47,"n_cols":6,"rows_kept":47,"merged":[[42,3,42,4],[43,3,43,4],[44,3,44,4],[45,3,45,4],[46,3,46,4],[47,3,47,4],[48,3,48,4],[49,3,49,4]]}
[]
[null,"ЗАГАЛЬНІ ВИТРАТИ НА ПРОПОЗИЦІЮ",{"$nulls":3}," "]
[]
[]
[null,"СПИСОК МАТЕРІАЛІВ І ЦІН"]
[]
[null,"Кількість","Опис","Ціна","Разом"," "]
[null,5,"Деревина 2x8x10",{"v":6.75,"d":"6.75₴"},{"$f":"Елементи_пропозицій[Ціна]*Елементи_пропозицій[Кількість]","v":{"v":33.75,"d":"33.75₴"}},{"$f":"_xlfn.RANK.EQ(Елементи_пропозицій[[#This Row],[Разом]],Елементи_пропозицій[Разом])","v":4}]
[null,20,"Дерев’яний брус 2x4x10 дюймів",{"v":4.97,"d":"4.97₴"},{"$f":"Елементи_пропозицій[Ціна]*Елементи_пропозицій[Кількість]","v":{"v":99.39999999999999,"d":"99.40₴"}},{"$f":"_xlfn.RANK.EQ(Елементи_пропозицій[[#This Row],[Разом]],Елементи_пропозицій[Разом])","v":2}]
[null,30,"Скоби для кріплення балок",{"v":2.49,"d":"2.49₴"},{"$f":"Елементи_пропозицій[Ціна]*Елементи_пропозицій[Кількість]","v":{"v":74.7,"d":"74.70₴"}},{"$f":"_xlfn.RANK.EQ(Елементи_пропозицій[[#This Row],[Разом]],Елементи_пропозицій[Разом])","v":3}]
[null,2,"Ящик шурупів (розміром 2 дюйми)",{"v":6.67,"d":"6.67₴"},{"$f":"Елементи_пропозицій[Ціна]*Елементи_пропозицій[Кількість]","v":{"v":13.34,"d":"13.34₴"}},{"$f":"_xlfn.RANK.EQ(Елементи_пропозицій[[#This Row],[Разом]],Елементи_пропозицій[Разом])","v":6}]
[null,2,"Ящик цвяхів (розміром 10 мм)",{"v":3.25,"d":"3.25₴"},{"$f":"Елементи_пропозицій[Ціна]*Елементи_пропозицій[Кількість]","v":{"v":6.5,"d":"6.50₴"}},{"$f":"_xlfn.RANK.EQ(Елементи_пропозицій[[#This Row],[Разом]],Елементи_пропозицій[Разом])","v":7}]
[null,2,"Пара шкіряних рукавиць",{"v":7.75,"d":"7.75₴"},{"$f":"Елементи_пропозицій[Ціна]*Елементи_пропозицій[Кількість]","v":{"v":15.5,"d":"15.50₴"}},{"$f":"_xlfn.RANK.EQ(Елементи_пропозицій[[#This Row],[Разом]],Елементи_пропозицій[Разом])","v":5}]
[null,2,"Витрати виробника",{"v":100,"d":"100.00₴"},{"$f":"Елементи_пропозицій[Ціна]*Елементи_пропозицій[Кількість]","v":{"v":200,"d":"200.00₴"}},{"$f":"_xlfn.RANK.EQ(Елементи_пропозицій[[#This Row],[Разом]],Елементи_пропозицій[Разом])","v":1}]
[{"$nulls":4},{"$f":"Елементи_пропозицій[Ціна]*Елементи_пропозицій[Кількість]","v":0},{"$f":"_xlfn.RANK.EQ(Елементи_пропозицій[[#This Row],[Разом]],Елементи_пропозицій[Разом])","v":8}]
[{"$nulls":4},{"$f":"Елементи_пропозицій[Ціна]*Елементи_пропозицій[Кількість]","v":0},{"$f":"_xlfn.RANK.EQ(Елементи_пропозицій[[#This Row],[Разом]],Елементи_пропозицій[Разом])","v":8}]
[{"$nulls":4},{"$f":"Елементи_пропозицій[Ціна]*Елементи_пропозицій[Кількість]","v":0},{"$f":"_xlfn.RANK.EQ(Елементи_пропозицій[[#This Row],[Разом]],Елементи_пропозицій[Разом])","v":8}]
[{"$nulls":4},{"$f":"Елементи_пропозицій[Ціна]*Елементи_пропозицій[Кількість]","v":0},{"$f":"_xlfn.RANK.EQ(Елементи_пропозицій[[#This Row],[Разом]],Елементи_пропозицій[Разом])","v":8}]
[{"$nulls":4},{"$f":"Елементи_пропозицій[Ціна]*Елементи_пропозицій[Кількість]","v":0},{"$f":"_xlfn.RANK.EQ(Елементи_пропозицій[[#This Row],[Разом]],Елементи_пропозицій[Разом])","v":8}]
[{"$nulls":4},{"$f":"Елементи_пропозицій[Ціна]*Елементи_пропозицій[Кількість]","v":0},{"$f":"_xlfn.RANK.EQ(Елементи_пропозицій[[#This Row],[Разом]],Елементи_пропозицій[Разом])","v":8}]
[{"$nulls":4},{"$f":"Елементи_пропозицій[Ціна]*Елементи_пропозицій[Кількість]","v":0},{"$f":"_xlfn.RANK.EQ(Елементи_пропозицій[[#This Row],[Разом]],Елементи_пропозицій[Разом])","v":8}]
[{"$nulls":4},{"$f":"Елементи_пропозицій[Ціна]*Елементи_пропозицій[Кількість]","v":0},{"$f":"_xlfn.RANK.EQ(Елементи_пропозицій[[#This Row],[Разом]],Елементи_пропозицій[Разом])","v":8}]
[{"$nulls":4},{"$f":"Елементи_пропозицій[Ціна]*Елементи_пропозицій[Кількість]","v":0},{"$f":"_xlfn.RANK.EQ(Елементи_пропозицій[[#This Row],[Разом]],Елементи_пропозицій[Разом])","v":8}]
[{"$nulls":4},{"$f":"Елементи_пропозицій[Ціна]*Елементи_пропозицій[Кількість]","v":0},{"$f":"_xlfn.RANK.EQ(Елементи_пропозицій[[#This Row],[Разом]],Елементи_пропозицій[Разом])","v":8}]
[{"$nulls":4},{"$f":"Елементи_пропозицій[Ціна]*Елементи_пропозицій[Кількість]","v":0},{"$f":"_xlfn.RANK.EQ(Елементи_пропозицій[[#This Row],[Разом]],Елементи_пропозицій[Разом])","v":8}]
[{"$nulls":4},{"$f":"Елементи_пропозицій[Ціна]*Елементи_пропозицій[Кількість]","v":0},{"$f":"_xlfn.RANK.EQ(Елементи_пропозицій[[#This Row],[Разом]],Елементи_пропозицій[Разом])","v":8}]
[{"$nulls":4},{"$f":"Елементи_пропозицій[Ціна]*Елементи_пропозицій[Кількість]","v":0},{"$f":"_xlfn.RANK.EQ(Елементи_пропозицій[[#This Row],[Разом]],Елементи_пропозицій[Разом])","v":8}]
[{"$nulls":4},{"$f":"Елементи_пропозицій[Ціна]*Елементи_пропозицій[Кількість]","v":0},{"$f":"_xlfn.RANK.EQ(Елементи_пропозицій[[#This Row],[Разом]],Елементи_пропозицій[Разом])","v":8}]
[{"$nulls":4},{"$f":"Елементи_пропозицій[Ціна]*Елементи_пропозицій[Кількість]","v":0},{"$f":"_xlfn.RANK.EQ(Елементи_пропозицій[[#This Row],[Разом]],Елементи_пропозицій[Разом])","v":8}]
[{"$nulls":4},{"$f":"Елементи_пропозицій[Ціна]*Елементи_пропозицій[Кількість]","v":0},{"$f":"_xlfn.RANK.EQ(Елементи_пропозицій[[#This Row],[Разом]],Елементи_пропозицій[Разом])","v":8}]
[1,{"$nulls":3},{"$f":"Елементи_пропозицій[Ціна]*Елементи_пропозицій[Кількість]","v":0},{"$f":"_xlfn.RANK.EQ(Елементи_пропозицій[[#This Row],[Разом]],Елементи_пропозицій[Разом])","v":8}]
[2,null,null,"Проміжні підсумки",{"$f":"SUBTOTAL(109,Елементи_пропозицій[Разом])","v":{"v":443.18999999999994,"d":"443.19₴"}},{"$f":"SUBTOTAL(103,Елементи_пропозицій[[ ]])","v":24}]
[4,null,null,"Податкова ставка",{"v":0.075,"d":"7.50%"}]
[5,null,null,"Податок",{"$f":"Податкова_ставка*Елементи_пропозицій[[#Totals],[Разом]]","v":{"v":33.23924999999999,"d":"33.24₴"}}]
[{"$nulls":3},"Загальний підсумок",{"$f":"Податок+Елементи_пропозицій[[#Totals],[Разом]]","v":{"v":476.4292499999999,"d":"476.43₴"}}]
[]
[]
[]
[null,"РОЗПОДІЛ МАТЕРІАЛІВ І ЦІН"]
[]
[]
[null,null,"УСЬОГО","ПРИМІТКИ"]
[null,{"$f":"INDEX(Елементи_пропозицій[],MATCH(A31,Елементи_пропозицій[[ ]],0),2)","v":"Витрати виробника"},{"$f":"INDEX(Елементи_пропозицій[],MATCH(A31,Елементи_пропозицій[[ ]],0),4)","v":{"v":200,"d":"$200.00"}}]
[null,{"$f":"INDEX(Елементи_пропозицій[],MATCH(A32,Елементи_пропозицій[[ ]],0),2)","v":"Дерев’яний брус 2x4x10 дюймів"},{"$f":"INDEX(Елементи_пропозицій[],MATCH(A32,Елементи_пропозицій[[ ]],0),4)","v":{"v":99.39999999999999,"d":"$99.40"}}]
[null,{"$f":"INDEX(Елементи_пропозицій[],MATCH(A33,Елементи_пропозицій[[ ]],0),2)","v":"Деревина 2x8x10"},{"$f":"INDEX(Елементи_пропозицій[],MATCH(A33,Елементи_пропозицій[[ ]],0),4)","v":{"v":33.75,"d":"$33.75"}}]
[null,{"$f":"INDEX(Елементи_пропозицій[],MATCH(A33,Елементи_пропозицій[[ ]],0),2)","v":"Деревина 2x8x10"},{"$f":"INDEX(Елементи_пропозицій[],MATCH(A33,Елементи_пропозицій[[ ]],0),4)","v":{"v":33.75,"d":"$33.75"}}]
[null,{"$f":"INDEX(Елементи_пропозицій[],MATCH(A34,Елементи_пропозицій[[ ]],0),2)","v":"Пара шкіряних рукавиць"},{"$f":"INDEX(Елементи_пропозицій[],MATCH(A34,Елементи_пропозицій[[ ]],0),4)","v":{"v":15.5,"d":"$15.50"}}]